fUSD/lending_fUSD_20250420
["ID","MTS","AMOUNT","RATE_DAILY","PERIOD"]
[358458141,1745166643471,-500.0,0.00060261,120]
[358458142,1745166643480,-155.21247024,0.00060261,120]
[358458143,1745166643489,-500.0,0.00060261,120]
[358458144,1745166643499,-500.0,0.00060261,120]
[358458145,1745166643508,-500.0,0.00060261,120]
[358458146,1745166643517,-500.0,0.00060261,120]
[358458147,1745166643526,-500.0,0.00060261,120]
[358458148,1745166643536,-500.0,0.00060261,8]
[358458149,1745166643544,-1000.0,0.00060261,120]
[358458150,1745166643553,-500.0,0.00060261,120]
[358458151,1745166643562,-500.0,0.00060261,120]
[358458152,1745166643572,-500.0,0.00060261,120]
[358458153,1745166643581,-500.0,0.00060261,120]
[358458154,1745166643590,-500.0,0.00060261,120]
[358458155,1745166643600,-500.0,0.00060261,120]
[358458156,1745166643609,-540.37,0.00060261,120]
[358458157,1745166643618,-500.0,0.00060261,120]
[358458158,1745166643628,-500.0,0.00060261,120]
[358458159,1745166643638,-500.0,0.00060261,120]
[358458160,1745166643647,-500.0,0.00060261,120]
[358458161,1745166643656,-500.0,0.00060261,120]
[358458162,1745166643666,-790.52,0.00060261,120]
[358458163,1745166643675,-607.88,0.00060261,120]
[358458164,1745166643685,-500.0,0.00060261,120]
[358458165,1745166643694,-500.0,0.00060261,120]
[358458166,1745166643703,-500.0,0.00060271,120]
[358458167,1745166643713,-500.0,0.00060271,120]
[358458168,1745166643722,-88.14658793,0.00060271,120]
[358458169,1745166643747,-411.85341207,0.00060271,120]
[358458170,1745166643758,-500.0,0.00060271,30]
[358458171,1745166643767,-500.0,0.00060271,120]
[358458172,1745166643777,-328.57110639,0.00060271,120]
[358458173,1745166643786,-500.0,0.00060271,120]
[358458174,1745166643795,-660.49,0.00060271,120]
[358458175,1745166643804,-389.28905039,0.00060271,120]
[358458176,1745166643814,-603.56805588,0.00060271,120]
[358458177,1745166643823,-500.0,0.00060271,120]
[358458178,1745166643836,-500.0,0.00060271,120]
[358458179,1745166643845,-500.0,0.00060271,120]
[358458180,1745166643855,-504.23085781,0.00060271,120]
[358458181,1745166643864,-500.0,0.00060271,120]
[358458182,1745166643874,-500.0,0.00060271,120]
[358458183,1745166643883,-256.09084189,0.00060271,120]
[358458184,1745166643984,-151.0,0.00055412,30]
[358458185,1745166643993,-243.90915811,0.00060271,120]
[358458186,1745166644002,-500.0,0.00060271,120]
[358458187,1745166644011,-447.4906128,0.00060271,120]
[358458188,1745166644034,-52.5093872,0.00060271,120]
[358458189,1745166644043,-500.0,0.00060271,120]
[358458190,1745166644053,-42.41390523,0.00060271,120]
[358458191,1745166644066,-457.58609477,0.00060271,120]
[358458192,1745166644075,-429.54937187,0.00060271,120]
[358458193,1745166644084,-186.66753512,0.00060271,120]
[358458194,1745166644095,-313.33246488,0.00060271,120]
[358458195,1745166644104,-230.71965918,0.00060271,120]
[358458196,1745166644113,-273.13793475,0.00060271,120]
[358458197,1745166644125,-284.35206525,0.00060271,120]
[358458198,1745166644134,-584.65847245,0.00060271,12]
[358458199,1745166644233,-386.29152755,0.00060271,12]
[358458200,1745166644243,-500.0,0.00060271,120]
[358458201,1745166644253,-500.0,0.00060271,120]
[358458202,1745166644263,-500.0,0.00060271,120]
[358458203,1745166644273,-500.0,0.00060271,120]
[358458204,1745166644282,-500.0,0.00060271,120]
[358458205,1745166644292,-500.0,0.00060271,120]
[358458206,1745166644303,-500.0,0.00060271,120]
[358458207,1745166644313,-500.0,0.00060271,120]
[358458208,1745166644322,-500.0,0.00060271,120]
[358458209,1745166644332,-500.0,0.00060271,120]
[358458210,1745166644342,-500.0,0.00060271,120]
[358458211,1745166644351,-500.0,0.00060271,120]
[358458212,1745166644360,-500.0,0.00060271,120]
[358458213,1745166644375,-397.4133811,0.00060271,120]
[358458214,1745166644384,-500.0,0.00060271,120]
[358458215,1745166644393,-500.0,0.00060271,120]
[358458216,1745166644403,-500.0,0.00060271,120]
[358458217,1745166644412,-500.0,0.00060271,120]
[358458218,1745166644421,-500.0,0.00060271,120]
[358458219,1745166644430,-500.0,0.00060271,120]
[358458220,1745166644439,-498.86072711,0.00060271,120]
[358458221,1745166644447,-502.29,0.00060271,120]
[358458222,1745166644456,-185.92632674,0.00060271,120]
[358458223,1745166644465,-500.0,0.00060271,120]
[358458224,1745166644475,-151.0,0.00060388,120]
[358458225,1745166644483,-582.99112973,0.00060525,15]
[358458226,1745166644492,-500.0,0.00060642,120]
[358458227,1745166644501,-500.0,0.00060642,2]
[358458228,1745166644510,-500.0,0.00060642,2]
[358458229,1745166644519,-500.0,0.00060642,120]
[358458230,1745166644527,-500.0,0.00060642,2]
[358458231,1745166644537,-500.0,0.00060643,120]
[358458232,1745166644546,-6296.39,0.00060643,2]
[358458233,1745166644555,-500.0,0.00060643,120]
[358458234,1745166644564,-500.0,0.00060643,120]
[358458235,1745166644573,-500.0,0.00060643,120]
[358458236,1745166644582,-500.0,0.00060643,120]
[358458237,1745166644592,-500.0,0.00060643,120]
[358458238,1745166644601,-500.0,0.00060643,120]
[358458239,1745166644611,-500.0,0.00060643,120]
[358458240,1745166644620,-2000.0,0.000608,90]
[358458241,1745166644631,-528.0,0.00060808,25]
[358458242,1745166644639,-500.0,0.00060808,120]
[358458243,1745166644648,-500.0,0.00060808,120]
[358458244,1745166644657,-239.97287353,0.00060808,120]
[358458245,1745166644667,-611.49151059,0.00060808,120]
[358458246,1745166644675,-500.0,0.00060808,120]
[358458247,1745166644685,-515.3467457,0.00060808,120]
[358458248,1745166644694,-500.0,0.00060808,120]
[358458249,1745166644702,-500.0,0.00060808,120]
[358458250,1745166644711,-500.0,0.00060808,120]
[358458251,1745166644721,-500.0,0.00060808,120]
[358458252,1745166644730,-500.0,0.00060808,120]
[358458253,1745166644740,-671.76,0.00060808,2]
[358458254,1745166644749,-500.0,0.00060808,120]
[358458255,1745166644758,-152.57122959,0.00060808,120]
[358458256,1745166644767,-500.0,0.00060808,120]
[358458257,1745166644776,-500.0,0.00060808,120]
[358458258,1745166644785,-999.0,0.00060808,120]
[358458259,1745166644794,-500.0,0.00060808,120]
[358458260,1745166644803,-500.0,0.00060808,120]
[358458261,1745166644812,-500.0,0.00060808,120]
[358458262,1745166644821,-500.0,0.00060808,120]
[358458263,1745166644834,-500.0,0.00060808,120]
[358458264,1745166644843,-500.0,0.00060808,120]
[358458265,1745166644851,-500.0,0.00060808,120]
[358458266,1745166644861,-500.0,0.00060808,120]
[358458267,1745166644870,-500.0,0.00060808,120]
[358458268,1745166644879,-500.0,0.00060808,120]
[358458269,1745166644888,-500.0,0.00060808,120]
[358458270,1745166644898,-500.0,0.00060808,120]
[358458271,1745166644908,-500.0,0.00060808,120]
[358458272,1745166644917,-500.0,0.00060808,120]
[358458273,1745166644926,-357.43892896,0.00060808,120]
[358458274,1745166644936,-500.0,0.00060808,120]
[358458275,1745166644945,-500.0,0.00060808,120]
[358458276,1745166644954,-500.0,0.00060808,120]
[358458277,1745166644963,-565.39810426,0.00060808,120]
[358458278,1745166644972,-9661.57577178,0.00060809,5]
[358458279,1745166644982,-500.0,0.00060809,120]
[358458280,1745166644991,-319.71896466,0.00060809,120]
[358458281,1745166645000,-647.36794556,0.00060809,120]
[358458282,1745166645010,-168.12606806,0.00060809,120]
[358458283,1745166645019,-500.0,0.00060809,120]
[358458284,1745166645028,-500.0,0.00060809,120]
[358458285,1745166645037,-500.0,0.00060809,120]
[358458286,1745166645046,-500.0,0.00060809,8]
[358458287,1745166645056,-1000.0,0.00060809,120]
[358458288,1745166645065,-500.0,0.00060809,120]
[358458289,1745166645074,-500.0,0.00060809,120]
[358458290,1745166645083,-500.0,0.00060809,120]
[358458291,1745166645093,-500.0,0.00060809,120]
[358458292,1745166645103,-422.0470097,0.00060809,120]
[358458293,1745166645112,-500.0,0.00060809,120]
[358458294,1745166645121,-540.37,0.00060809,120]
[358458295,1745166645131,-500.0,0.00060809,120]
[358458296,1745166645141,-500.0,0.00060809,120]
[358458297,1745166645150,-500.0,0.00060809,120]
[358458298,1745166645160,-409.186546,0.00060809,120]
[358458299,1745166645169,-500.0,0.00060809,120]
[358458300,1745166645179,-790.52,0.00060809,120]
[358458301,1745166645189,-607.88,0.00060809,120]
[358458302,1745166645199,-500.0,0.00060809,120]
[358458303,1745166645208,-500.0,0.00060809,120]
[358458304,1745166645218,-150.0,0.00060815,120]
[358458305,1745166645227,-500.0,0.00060819,120]
[358458306,1745166645237,-343.83162153,0.00060819,30]
[358458307,1745166645246,-425.29165031,0.00060819,120]
[358458308,1745166645255,-500.0,0.00060819,120]
[358458309,1745166645265,-660.49,0.00060819,120]
[358458310,1745166645275,-500.0,0.00060819,120]
[358458311,1745166645285,-577.32599251,0.00060819,120]
[358458312,1745166645294,-500.0,0.00060819,120]
[358458313,1745166645303,-500.0,0.00060819,120]
[358458314,1745166645312,-500.0,0.00060819,120]
[358458315,1745166645322,-500.0,0.00060819,120]
[358458316,1745166645331,-500.0,0.00060819,120]
[358458317,1745166645340,-500.0,0.00060819,120]
[358458318,1745166645349,-500.0,0.00060819,120]
[358458319,1745166645359,-500.0,0.00060819,120]
[358458320,1745166645368,-500.0,0.00060819,120]
[358458321,1745166645380,-557.49,0.00060819,120]
[358458322,1745166645389,-970.95,0.00060819,12]
[358458323,1745166645398,-500.0,0.00060819,120]
[358458324,1745166645407,-500.0,0.00060819,120]
[358458325,1745166645416,-253.13868853,0.00060819,120]
[358458326,1745166645425,-500.0,0.00060819,120]
[358458328,1745166645550,-500.0,0.00060819,120]
[358458329,1745166645562,-500.0,0.00060819,120]
[358458330,1745166645571,-500.0,0.00060819,120]
[358458331,1745166645580,-500.0,0.00060819,120]
[358458332,1745166645589,-500.0,0.00060819,120]
[358458334,1745166645598,-500.0,0.00060819,120]
[358458335,1745166645607,-500.0,0.00060819,120]
[358458336,1745166645617,-500.0,0.00060819,120]
[358458337,1745166645629,-500.0,0.00060819,120]
[358458338,1745166645638,-500.0,0.00060819,120]
[358458339,1745166645647,-500.0,0.00060819,120]
[358458340,1745166645656,-500.0,0.00060819,120]
[358458341,1745166645665,-500.0,0.00060819,120]
[358458343,1745166645675,-500.0,0.00060819,120]
[358458345,1745166645684,-500.0,0.00060819,120]
[358458347,1745166645692,-502.29,0.00060819,120]
[358458348,1745166645701,-500.0,0.00060819,120]
[358458349,1745166645710,-19323.1515436,0.0006088,5]
[358458350,1745166645720,-16686.26368278,0.0006089,5]
[358458351,1745166645736,-550.0,0.0006089,5]
[358458352,1745166645748,-2415.76450395,0.0006089,5]
[358458354,1745166646315,-18994.27490037,0.0006089,5]
[358458355,1745166646325,-15254.67366679,0.000609,2]
[358458356,1745166646389,-8479.00603321,0.000609,2]
[358458357,1745166646398,-8328.8794,0.000609,2]
[358458358,1745166646407,-10737.5667,0.000609,2]
[358458359,1745166646416,-34271.1693,0.000609,2]
[358458360,1745166646425,-157.36473746,0.000609,40]
[358458361,1745166646434,-200.0,0.000609,120]
[358458362,1745166646443,-200.0,0.000609,120]
[358458363,1745166646453,-96615.7577178,0.0006097,5]
[358458364,1745166646462,-501.68230121,0.00060973,10]
[358458365,1745166646472,-9661.57577178,0.00060979,5]
[358458366,1745166646481,-38646.3030871,0.0006098,5]
[358458367,1745166646491,-999.0,0.00060989,120]
[358458368,1745166646500,-14229.61771687,0.0006099,5]
[358458369,1745166646512,-10523.40000001,0.0006099,5]
[358458370,1745166646523,-18402.17,0.0006099,5]
[358458371,1745166646534,-4221.0,0.0006099,5]
[358458372,1745166646545,-851.9775012,0.0006099,5]
[358458373,1745166646561,-272.10190433,0.0006099,5]
[358458374,1745166646573,-383.73915988,0.0006099,5]
[358458375,1745166646584,-471.78214968,0.0006099,5]
[358458377,1745167284299,-170.7,0.0003778,2]
[358458378,1745167284327,-151.0,0.0003948,2]
[358458379,1745167287007,151.0,0.0003948,2]
[358458380,1745167294291,-161.26,0.00047,2]
[358458381,1745167294324,-152.36,0.000481,45]
[358458382,1745167294357,-152.36,0.000481,45]
[358458383,1745167299104,-152.0,0.00050717,3]
[358458384,1745167299128,-1800.0,0.00052,2]
[358458385,1745167299160,-152.36,0.000536,54]
[358458386,1745167299189,-152.36,0.000536,54]
[358458387,1745167299223,-152.36,0.000536,54]
[358458388,1745167299255,-152.36,0.000536,54]
[358458389,1745167299279,-455.66715436,0.00054795,120]
[358458390,1745167299308,-152.0,0.00054933,4]
[358458391,1745167299361,150.0,0.00050717,3]
[358458392,1745167299842,151.0,0.00048944,15]
[358458393,1745167303482,151.0,0.00051598,30]
[358458394,1745167306932,150.0,0.000547,120]
[358458395,1745167307097,150.0,0.000547,120]
[358458396,1745167307301,150.0,0.000547,120]
[358458397,1745167307473,150.0,0.000547,120]
[358458398,1745167307639,288.0,0.000547,120]
[358458399,1745167316304,151.0,0.00051534,30]
[358458400,1745167317356,150.0,0.000547,120]
[358458401,1745167317538,150.0,0.000547,120]
[358458402,1745167317713,265.97353847,0.000547,120]
[358458403,1745167318558,150.0,0.000547,120]
[358458404,1745167318744,150.0,0.000547,120]
[358458405,1745167318905,200.0,0.000547,120]
[358458406,1745167319530,151.0,0.00051534,30]
[358458407,1745167319869,150.0,0.000547,120]
[358458408,1745167319926,150.0,0.000547,120]
[358458409,1745167320139,150.0,0.000547,120]
[358458410,1745167320316,150.0,0.000547,120]
[358458411,1745167320510,150.0,0.000547,120]
[358458412,1745167320674,194.0,0.000547,120]
[358458413,1745167321799,150.0,0.000547,120]
[358458414,1745167332424,151.0,0.00051465,30]
[358458415,1745167336263,151.0,0.00051465,30]
[358458416,1745167348534,151.0,0.00049355,30]
[358458417,1745167364627,151.0,0.00049474,30]
[358458418,1745167478703,286.0,0.00054681,120]
[358458419,1745167562442,158.7,0.000546,120]
[358458420,1745167620897,306.5,0.00054681,120]
[358458421,1745167620966,151.0,0.00042559,5]
[358458422,1745167621718,151.0,0.00042559,5]
[358458423,1745167637258,151.0,0.00042553,5]
[358458424,1745167637763,151.0,0.00042553,5]
[358458427,1745167831952,-502.031015,0.00047734,3]
[358458428,1745167831962,-1166.66,0.00055999,2]
[358458429,1745167831971,-1166.66,0.00055999,2]
[358458430,1745167831980,-500.0,0.00056341,120]
[358458431,1745167831989,-500.0,0.00056607,120]
[358458432,1745167831998,-274.83,0.000567,2]
[358458433,1745167832008,-157.70215235,0.00056999,30]
[358458434,1745167832017,-140.1598048,0.00056999,2]
[358458435,1745167832030,-420.8,0.00056999,2]
[358458436,1745167832040,-605.7001952,0.00056999,2]
[358458437,1745167832050,-700.0,0.00057112,120]
[358458438,1745167832058,-64.80173426,0.0005746,120]
[358458439,1745167832069,-85.19826574,0.0005746,120]
[358458440,1745167832079,-150.0,0.00057968,120]
[358458441,1745167832087,-150.0,0.00058487,7]
[358458442,1745167832097,-635.51,0.00058507,30]
[358458443,1745167832106,-199.71,0.00058523,2]
[358458444,1745167832115,-300.0,0.00058524,10]
[358458445,1745167832124,-646.0,0.00058525,15]
[358458446,1745167832133,-300.0,0.00058526,10]
[358458447,1745167832143,-500.0,0.00058527,2]
[358458448,1745167832152,-1000.0,0.00058578,120]
[358458449,1745167832162,-250.0,0.00058582,120]
[358458450,1745167832171,-2000.0,0.000586,90]
[358458451,1745167832181,-163.8,0.00058609,2]
[358458452,1745167832190,-13778.97,0.00058621,120]
[358458453,1745167832200,-165.21,0.00058622,2]
[358458454,1745167832209,-680.29,0.00058635,30]
[358458455,1745167832218,-150.0,0.00058635,2]
[358458456,1745167832227,-280.49,0.00058641,120]
[358458457,1745167832237,-169.56,0.00058657,120]
[358458458,1745167832246,-500.0,0.00058683,2]
[358458459,1745167832255,-200.0,0.00058757,2]
[358458460,1745167832264,-23900.0,0.00058794,2]
[358458461,1745167832274,-184.33,0.00058831,120]
[358458463,1745167832283,-172.41,0.00058884,120]
[358458465,1745167832292,-465.443,0.00058889,116]
[358458466,1745167832302,-1852.42,0.00058889,120]
[358458467,1745167832311,-169.462,0.00058889,116]
[358458468,1745167832321,-274.83,0.00058964,2]
[358458470,1745167832330,-500.0,0.00058998,120]
[358458472,1745167832339,-601.33,0.00058998,120]
[358458474,1745167832348,-999.0,0.00058998,120]
[358458475,1745167832357,-500.0,0.00058998,120]
[358458477,1745167832366,-500.0,0.00058998,120]
[358458478,1745167832375,-500.0,0.00058998,120]
[358458480,1745167832385,-500.0,0.00058998,120]
[358458483,1745167832394,-500.0,0.00058998,120]
[358458485,1745167832403,-500.0,0.00058998,120]
[358458487,1745167832412,-500.0,0.00058998,120]
[358458489,1745167832421,-500.0,0.00058998,120]
[358458491,1745167832430,-500.0,0.00058998,120]
[358458492,1745167832442,-500.0,0.00058998,120]
[358458493,1745167832452,-155.21247024,0.00058998,120]
[358458494,1745167832463,-500.0,0.00058998,120]
[358458495,1745167832473,-500.0,0.00058998,120]
[358458496,1745167832482,-500.0,0.00058998,120]
[358458497,1745167832491,-500.0,0.00058998,120]
[358458498,1745167832501,-552.05539893,0.00058998,120]
[358458499,1745167832510,-500.0,0.00058998,120]
[358458500,1745167832519,-500.0,0.00058998,120]
[358458501,1745167832529,-500.0,0.00058998,120]
[358458502,1745167832538,-500.0,0.00058998,120]
[358458503,1745167832548,-500.0,0.00058998,120]
[358458504,1745167832559,-586.00210286,0.00058998,120]
[358458505,1745167832568,-500.0,0.00058998,120]
[358458506,1745167832578,-500.0,0.00058998,120]
[358458507,1745167832587,-692.88,0.00058998,120]
[358458508,1745167832596,-500.0,0.00058998,120]
[358458509,1745167832606,-150.0,0.00058998,120]
[358458510,1745167832615,-150.0,0.00058998,120]
[358458511,1745167832624,-150.0,0.00058998,120]
[358458512,1745167832634,-200.0,0.00058998,120]
[358458513,1745167832644,-150.0,0.00058998,120]
[358458514,1745167832653,-150.0,0.00058998,120]
[358458515,1745167832663,-150.0,0.00058998,120]
[358458516,1745167832672,-200.0,0.00058998,120]
[358458517,1745167832681,-150.0,0.00058998,120]
[358458518,1745167832690,-150.0,0.00058998,120]
[358458519,1745167832700,-500.0,0.00058999,120]
[358458520,1745167832709,-500.0,0.00058999,120]
[358458521,1745167832718,-500.0,0.00058999,120]
[358458522,1745167832731,-500.0,0.00058999,120]
[358458523,1745167832740,-500.0,0.00058999,120]
[358458524,1745167832749,-500.0,0.00058999,120]
[358458525,1745167832759,-500.0,0.00058999,120]
[358458526,1745167832768,-194.42020584,0.00058999,120]
[358458527,1745167832778,-500.0,0.00058999,120]
[358458528,1745167832788,-500.0,0.00058999,120]
[358458529,1745167832797,-500.0,0.00058999,120]
[358458530,1745167832807,-500.0,0.00058999,120]
[358458531,1745167832817,-540.25574967,0.00058999,120]
[358458532,1745167832826,-500.0,0.00058999,120]
[358458533,1745167832835,-500.0,0.00058999,120]
[358458534,1745167832844,-500.0,0.00058999,120]
[358458535,1745167832853,-544.75347657,0.00058999,120]
[358458536,1745167832862,-541.36073956,0.00058999,120]
[358458537,1745167832873,-500.0,0.00058999,120]
[358458538,1745167832883,-557.47675522,0.00058999,120]
[358458539,1745167832893,-500.0,0.00058999,120]
[358458540,1745167832902,-1166.66,0.00058999,2]
[358458541,1745167832912,-500.0,0.00058999,30]
[358458542,1745167832923,-500.0,0.00058999,120]
[358458543,1745167832932,-500.0,0.00058999,120]
[358458544,1745167832941,-500.0,0.00058999,120]
[358458545,1745167832952,-500.0,0.00058999,120]
[358458546,1745167832962,-173.0,0.00059,120]
[358458547,1745167832972,-152.0,0.0005915,5]
[358458548,1745167832982,-1828.26,0.0005918,2]
[358458549,1745167832994,-152.36,0.000592,60]
[358458550,1745167833004,-152.36,0.000592,60]
[358458551,1745167833013,-152.36,0.000592,60]
[358458552,1745167833022,-152.36,0.000592,60]
[358458553,1745167833031,-503.53954002,0.00059344,15]
[358458554,1745167833040,-1000.0,0.00059378,120]
[358458555,1745167833050,-150.0,0.00059425,120]
[358458556,1745167833059,-200.0,0.00059515,120]
[358458557,1745167833068,-150.0,0.0005953,120]
[358458558,1745167833077,-500.0,0.00059546,120]
[358458559,1745167833086,-999.0,0.00059546,120]
[358458560,1745167833096,-500.0,0.00059546,120]
[358458561,1745167833105,-500.0,0.00059546,120]
[358458562,1745167833115,-500.0,0.00059546,120]
[358458563,1745167833124,-500.0,0.00059546,120]
[358458564,1745167833133,-500.0,0.00059546,120]
[358458565,1745167833143,-500.0,0.00059546,120]
[358458566,1745167833153,-500.0,0.00059546,120]
[358458567,1745167833162,-500.0,0.00059546,120]
[358458568,1745167833171,-225.63,0.00059546,120]
[358458569,1745167833181,-692.88,0.00059546,120]
[358458570,1745167833190,-500.0,0.00059547,120]
[358458571,1745167833199,-229.61817389,0.00059547,120]
[358458572,1745167833208,-500.0,0.00059547,120]
[358458573,1745167833217,-500.0,0.00059547,120]
[358458574,1745167833226,-500.0,0.00059547,120]
[358458575,1745167833235,-500.0,0.00059547,120]
[358458576,1745167833244,-642.81340211,0.00059547,120]
[358458577,1745167833253,-500.0,0.00059547,120]
[358458578,1745167833263,-500.0,0.00059547,120]
[358458579,1745167833272,-500.0,0.00059547,120]
[358458580,1745167833281,-150.88,0.00059871,120]
[358458581,1745167833291,-1166.66,0.00059999,2]
[358458582,1745167833300,-1166.66,0.00059999,2]
[358458583,1745167833309,-1166.66,0.00059999,2]
[358458584,1745167833319,-2000.0,0.0006,2]
[358458585,1745167833329,-500.0,0.00060094,120]
[358458586,1745167833338,-999.0,0.00060094,120]
[358458587,1745167833347,-500.0,0.00060094,120]
[358458588,1745167833357,-500.0,0.00060094,120]
[358458589,1745167833366,-500.0,0.00060094,120]
[358458590,1745167833375,-182.90303064,0.00060094,120]
[358458591,1745167833384,-500.0,0.00060094,120]
[358458592,1745167833395,-500.0,0.00060094,120]
[358458593,1745167833405,-500.0,0.00060094,120]
[358458594,1745167833415,-562.91147115,0.00060094,120]
[358458595,1745167833424,-692.88,0.00060094,120]
[358458596,1745167833434,-481.29761973,0.00060095,120]
[358458597,1745167833443,-500.0,0.00060095,120]
[358458598,1745167833453,-500.0,0.00060095,120]
[358458599,1745167833463,-500.0,0.00060095,120]
[358458600,1745167833473,-500.0,0.00060095,120]
[358458601,1745167833482,-500.0,0.00060095,120]
[358458602,1745167833492,-500.0,0.00060095,120]
[358458603,1745167833502,-500.0,0.00060105,15]
[358458604,1745167833511,-500.0,0.00060161,2]
[358458605,1745167833521,-548.82592614,0.00060161,2]
[358458606,1745167833531,-500.0,0.00060161,15]
[358458607,1745167833541,-552.28063968,0.00060248,14]
[358458608,1745167833550,-500.0,0.00060248,15]
[358458609,1745167833560,-500.0,0.00060248,15]
[358458610,1745167833570,-152.301791,0.00060248,14]
[358458611,1745167833579,-550.79908293,0.00060249,120]
[358458612,1745167833589,-152.3944894,0.00060249,120]
[358458613,1745167833598,-500.0,0.00060249,120]
[358458614,1745167833608,-599.62754521,0.00060249,120]
[358458615,1745167833618,-500.0,0.00060249,120]
[358458616,1745167833628,-500.0,0.00060249,120]
[358458617,1745167833637,-500.0,0.00060249,120]
[358458618,1745167833648,-150.0,0.00060311,120]
[358458619,1745167833657,-500.6549931,0.00060334,15]
[358458620,1745167833666,-166.67,0.00060381,2]
[358458621,1745167833676,-533.39560641,0.00060642,120]
[358458622,1745167833686,-999.0,0.00060642,120]
[358458623,1745167833695,-500.0,0.00060642,120]
[358458624,1745167833705,-171.54682341,0.00060642,120]
[358458625,1745167833714,-500.0,0.00060642,120]
[358458626,1745167833725,-500.0,0.00060642,120]
[358458627,1745167833735,-500.0,0.00060642,120]
[358458628,1745167833745,-500.0,0.00060642,120]
[358458629,1745167833754,-692.88,0.00060642,120]
[358458630,1745167833765,-500.19338511,0.00060643,120]
[358458631,1745167833776,-500.0,0.00060643,120]
[358458632,1745167833785,-500.0,0.00060643,120]
[358458633,1745167833795,-500.0,0.00060643,120]
[358458634,1745167833804,-500.0,0.00060643,120]
[358458635,1745167833813,-621.42151912,0.00060643,120]
[358458636,1745167833823,-652.25083912,0.00060889,80]
[358458637,1745167833833,-816.80305112,0.0006089,32]
[358458638,1745167833842,-663.0695,0.0006089,2]
[358458639,1745167834008,-3078.3828,0.000609,2]
[358458640,1745167834018,-751.2887,0.000609,2]
[358458641,1745167834027,-200.0,0.000609,120]
[358458642,1745167834036,-200.0,0.000609,120]
[358458643,1745167834046,-3983.56038853,0.000609,120]
[358458644,1745167834060,-4800.33452644,0.000609,120]
[358458645,1745167834072,-370.76858744,0.000609,120]
[358458646,1745167834087,-845.33649759,0.000609,120]
[358458647,1745167834096,-3628.0,0.000609,120]
[358458648,1745167834106,-500.0,0.0006098,120]
[358458649,1745167834116,-540.78121914,0.0006098,120]
[358458650,1745167834126,-417.91503815,0.0006098,120]
[358458651,1745167834135,-515.16532087,0.0006098,120]
[358458652,1745167834145,-500.0,0.0006098,120]
[358458653,1745167834155,-500.0,0.0006098,120]
[358458654,1745167834164,-500.0,0.0006098,120]
[358458655,1745167834174,-500.0,0.0006098,120]
[358458656,1745167834184,-500.0,0.0006098,120]
[358458657,1745167834193,-500.0,0.0006098,120]
[358458658,1745167834204,-500.0,0.0006098,120]
[358458659,1745167834213,-500.0,0.0006098,120]
[358458660,1745167834223,-1000.0,0.0006098,120]
[358458661,1745167834233,-500.0,0.0006098,120]
[358458662,1745167834242,-500.0,0.0006098,120]